Cogmind - Beta 15 @@@ ROGUE MODE // 2025.07.27 @ 11:57:19 Player: Minty Result: Destroyed by Armageddon Trap Performance ------------- Evolutions (1) 500 Regions Visited (5) 1000 Robots Destroyed (54) 270 Value Destroyed (2086) 2086 Prototype IDs (3) 60 Alien Tech Used (0) 0 Bonus (266) 266 TOTAL SCORE: 4182 Bonus ------- High Alert Combat Kills 66 Entered Garrisons 200 Cogmind --------- Core Integrity 0/400 Matter 271/300 Energy 81/100 System Corruption 1% Temperature Cool (0) Movement Hovering (150) Ox1 Location -9/Garrison Parts ------- > --- POWER (1) -------- (None) > --- PROPULSION (2) --- Combat Airjet > --- UTILITY (4) ------ Improved Heat Sink Large Storage Unit Trap Extractor (1/4 Armageddon) > --- WEAPON (2) ------- (None) > --- INVENTORY (15) --- Light Nuclear Core Relay Coupler [NC] (28) Relay Coupler [Swarmer] (25) Relay Coupler [Grunt] (22) Relay Coupler [Grunt] (29) Relay Coupler [Brawler] (29) Relay Coupler [Duelist] (29) Relay Coupler [Sentry] (19) Relay Coupler [Specialist] (21) Relay Coupler [Hunter] (13) Relay Coupler [Hunter] (12) Relay Coupler [Heavy] (14) Peak State ------------ > --- POWER ------------ Light Deuterium Engine > --- PROPULSION ------- Improved Treads Combat Airjet > --- UTILITY ---------- Improved Heat Sink Improved Heat Sink Large Storage Unit Trap Extractor > --- WEAPON ----------- Particle Gun Improved Medium Laser > --- INVENTORY -------- Ion Engine Light Nuclear Core Reflective Plating Relay Coupler [NC] Relay Coupler [Swarmer] Relay Coupler [Grunt] Relay Coupler [Grunt] Relay Coupler [Brawler] Relay Coupler [Duelist] Relay Coupler [Sentry] Relay Coupler [Specialist] Relay Coupler [Hunter] Relay Coupler [Hunter] Relay Coupler [Heavy] Rocket Launcher [Rating: 29] Favorites ----------- Power Light Deuterium Engine Engine Light Deuterium Engine Propulsion Improved Treads Treads Improved Treads Leg Aluminum Leg Wheel Wheel Hover Unit Combat Airjet Utility Improved Heat Sink Device Improved Heat Sink Storage Large Storage Unit Protection Reflective Plating Weapon Particle Gun Energy Gun Particle Gun Ballistic Gun Assault Rifle Launcher Rocket Launcher Slashing Weapon Mining Claw Build | -11 -10 -10 -9 -9 -9 ------- Run | Yrd Mat Min Mat Sto Gar Slots Evolved 2 | . . . 2 . . Power . | . . . . . . Propulsion . | . . . . . . Utility 2 | . . . 2 . . Weapon . | . . . . . . Parts Attached 36 | . 7 1 12 7 9 Power 4 | . . . 2 . 2 Engine 4 | . . . 2 . 2 Core . | . . . . . . Reactor . | . . . . . . Propulsion 13 | . 2 1 4 4 2 Treads 8 | . 2 . 1 4 1 Leg 1 | . . . 1 . . Wheel 3 | . . 1 2 . . Hover 1 | . . . . . 1 Flight . | . . . . . . Utility 11 | . 2 . 4 1 4 Device 8 | . 1 . 3 1 3 Storage 2 | . 1 . 1 . . Processor . | . . . . . . Hackware . | . . . . . . Protection 1 | . . . . . 1 Artifact . | . . . . . . Weapon 8 | . 3 . 2 2 1 Energy Gun 5 | . 2 . . 2 1 Energy Cannon . | . . . . . . Ballistic Gun 1 | . . . 1 . . Ballistic Cannon . | . . . . . . Launcher 1 | . . . 1 . . Special Weapon . | . . . . . . Impact Weapon . | . . . . . . Slashing Weapon 1 | . 1 . . . . Piercing Weapon . | . . . . . . Special Melee Weapon . | . . . . . . Unidentified Prototypes 1 | . . . . 1 . Parts Lost 15 | . . 2 3 . 10 Power 3 | . . . 1 . 2 Propulsion 5 | . . 1 2 . 2 Utility 3 | . . . . . 3 Weapon 4 | . . 1 . . 3 Highest Loss Streak 8 | . . 2 2 . 8 To Critical Strikes . | . . . . . . Average Backups 13 | . 7 8 12 15 14 Power 2 | . 1 2 3 3 2 Propulsion 1 | . 3 1 1 2 . Utility 7 | . 1 3 6 7 10 Weapon 1 | . 1 2 2 2 1 Tool/Special . | . . . . . . Unused Backups 26 | . 5 . 2 . 19 Power 3 | . 1 . 1 . 1 Propulsion 3 | . 3 . . . . Utility 18 | . . . . . 18 Weapon 2 | . 1 . 1 . . Tool/Special . | . . . . . . Average Slot Usage (%) 93 | . 97 98 69 99 97 Engine 10 | . 14 14 7 11 10 Treads 14 | . 8 27 6 16 17 Leg 2 | . 19 . 2 . . Wheel 2 | . . . 11 4 . Hover 1 | . . . . . 4 Device 23 | . 12 14 17 33 26 Storage 11 | . 14 14 11 11 11 Protection 2 | . . . . . 5 Energy Gun 17 | . 26 26 . 11 21 Ballistic Gun 1 | . . . 2 5 . Slashing Weapon 2 | . 2 . 11 . . Peak Build Rating 29 | . 9 10 14 23 29 Average Rating 18 | . 7 8 9 18 25 On Entrance 11 | 6 6 9 8 14 23 Naked Turns . | . . . . . . Heaviest Build 38 | 14 31 31 35 37 38 Greatest Support 46 | 20 40 40 20 46 46 Greatest Overweight (x) 3 | . . 2 3 1 2 Average Overweight (x) . | . . . 2 . . Largest Inventory Capacity 15 | . 15 15 15 15 15 Average Capacity 14 | . 8 15 15 15 15 Most Carried 15 | . 8 11 15 15 15 Average Carried 13 | . 7 8 13 14 14 Final Capacity 15 | 8 15 15 15 15 15 Final Carried 15 | 6 8 10 15 15 12 Class Distribution -------------------- 56% | Scavenger-Mutant 43% | Mutant Dominant Class ---------------- Mutant | -10/Materials Mutant | -10/Mines Mutant | -9/Materials Scavenger-Mutant | -9/Storage Scavenger-Mutant | -9/Garrison Resources | -11 -10 -10 -9 -9 -9 ----------- Run | Yrd Mat Min Mat Sto Gar Matter Collected 954 | 200 65 10 83 382 214 Remotely . | . . . . . . Salvage Created 1599 | . 216 43 260 581 499 Parts 102 | . 8 6 19 34 35 Haulers Intercepted 2 | . . . . 2 . Recyclers Shooed 1 | . . 1 . . . Parts Field Recycled . | . . . . . . Retrieved Matter . | . . . . . . Parts Self-Destructed . | . . . . . . Prevented . | . . . . . . Kills | -11 -10 -10 -9 -9 -9 ------- Run | Yrd Mat Min Mat Sto Gar Combat Hostiles Destroyed 40 | . 5 4 4 13 14 Melee 6 | . 1 1 4 . . Guns 22 | . 4 3 . 5 10 AOE 10 | . . . . 7 3 Classes Destroyed 10 | . 1 2 3 2 2 Worker 9 | . . . 3 6 . Tunneler 1 | . . . 1 . . Hauler 2 | . . . . 2 . Watcher 2 | . . . . 2 . Swarmer 7 | . . 3 . . 4 Grunt 26 | . 5 . 3 11 7 Duelist 2 | . . . . . 2 Sentry 3 | . . . 1 2 . Demolisher 1 | . . 1 . . . Programmer 1 | . . . . . 1 Best Kill Streak 9 | . 2 3 4 9 5 Combat Bots Only 5 | . 2 3 1 5 5 Max Kills in Single Turn 3 | . 1 1 1 3 2 Gunslinging . | . . . . . . Exploded 2 | . . . . 2 2 Melee 1 | . 1 1 1 . . Uniques/NPCs Destroyed . | . . . . . . Combat | -11 -10 -10 -9 -9 -9 -------- Run | Yrd Mat Min Mat Sto Gar Hostile Shots Fired 252 | . 27 21 45 50 109 Missed 68 | . 7 1 12 16 32 Hits 184 | . 20 20 33 34 77 Melee 16 | . . . . . 16 Projectile 168 | . 20 20 33 34 61 AOE 11 | . . 11 . . . Critical Strikes 6 | . . . 1 . 5 Damage Taken 2761 | . 272 485 375 335 1294 Core 616 | . 88 103 128 39 258 Absorbed by Shields 224 | . . . 33 129 62 Ignored by Resistances 33 | . . . . . 33 Core Remaining (%) 61 | 100 . 23 . . . Volleys Fired 115 | . 16 9 . 39 51 Largest 2 | . 2 2 . 2 2 Hottest 121 | . 115 115 . 121 121 Shots Fired 218 | . 32 18 . 70 98 Gun 201 | . 32 18 . 58 93 Cannon . | . . . . . . Launcher 17 | . . . . 12 5 Special . | . . . . . . Kinetic 10 | . . . . 10 . Thermal 191 | . 32 18 . 48 93 Explosive 17 | . . . . 12 5 Electromagnetic . | . . . . . . Robot Hit Streak 14 | . 5 5 . 14 9 Robot Miss Streak 4 | . 3 2 . 3 4 Penetration Max . | . . . . . . Secondary Targets 4 | . . 1 . 1 2 Max Gunslinging Chain 1 | . . 1 . 1 1 Shots Hit Robots 149 | . 22 11 14 47 55 Core Hits 84 | . 10 5 8 33 28 Critical Kills . | . . . . . . Critical Parts Destroyed . | . . . . . . Critical Strikes 7 | . 1 . . 2 4 Burn 7 | . 1 . . 2 4 Melee Attacks 31 | . 3 3 25 . . Impact . | . . . . . . Slashing 31 | . 3 3 25 . . Piercing . | . . . . . . Sneak Attacks 4 | . . . 4 . . Combat Hostiles . | . . . . . . Follow-up Attacks . | . . . . . . Damage Inflicted 3931 | . 307 195 430 1586 1413 Guns 1986 | . 259 156 . 600 971 Cannons . | . . . . . . Explosions 1402 | . . . . 960 442 Melee 500 | . 48 22 430 . . Ramming 43 | . . 17 . 26 . Kinetic 85 | . . . . 85 . Thermal 1901 | . 259 156 . 515 971 Explosive 1402 | . . . . 960 442 Electromagnetic . | . . . . . . Impact . | . . . . . . Slashing 500 | . 48 22 430 . . Piercing . | . . . . . . Highest Corruption 1 | . . . . . 1 Average Corruption 1 | . . . . . 1 Corruption Purged . | . . . . . . Corruption Blocked . | . . . . . . Effects 2 | . . . . . 2 Message Errors 1 | . . . . . 1 Data Loss (minor) 1 | . . . . . 1 Overload Shots . | . . . . . . Overflow Damage 45 | . . . 29 . 16 Projectiles . | . . . . . . Explosions 16 | . . . . . 16 Melee 29 | . . . 29 . . Knockbacks 1 | . . 1 . . . Impact 1 | . . 1 . . . Kinetic . | . . . . . . Secondary . | . . . . . . Self-Inflicted Damage 291 | . . . . 39 252 Shots 5 | . . . . 1 4 Rammed 4 | . . 3 . 1 . Targets Rammed 6 | . 1 3 . 2 . Kicked 1 | . 1 . . . . Crushed 1 | . . . . 1 . Highest Temperature 312 | . 207 216 . 312 5 Average Temperature 114 | . 91 79 . 167 5 Received Heat Transfer 619 | . 150 . 200 142 127 Siege Activations . | . . . . . . Martial Activations . | . . . . . . Shielding Activations . | . . . . . . Robots Disrupted . | . . . . . . Combat Hostiles . | . . . . . . Robots Corrupted . | . . . . . . Combat Hostiles . | . . . . . . Parts Fried . | . . . . . . Impact Corruptions . | . . . . . . Robots Melted 2 | . . . . 1 1 Combat Hostiles 2 | . . . . 1 1 Parts Melted 10 | . 1 . . 4 5 Heat Transferred 4993 | . 814 407 . 1369 2403 Parts Sabotaged . | . . . . . . Parts Stolen . | . . . . . . Parts Stripped . | . . . . . . Power Chain Reactions . | . . . . . . Alert | -11 -10 -10 -9 -9 -9 ------- Run | Yrd Mat Min Mat Sto Gar Maximum Alert Level 2 | . . . . 1 2 Low Security (%) 43 | . 100 100 100 36 2 Level 1 22 | . . . . 63 23 Level 2 34 | . . . . . 73 Level 3 . | . . . . . . Level 4 . | . . . . . . Level 5 . | . . . . . . High Security . | . . . . . . Max Security . | . . . . . . Peak Influence 691 | . 140 96 40 325 691 Initial 194 | . . 46 17 8 194 Average 294 | . 61 65 14 222 514 Influence Increases 1473 | . 220 90 136 471 556 Destroy 0b10 Robot/C 800 | . 100 80 80 260 280 Destroy 0b10 Robot/NC 90 | . . . 20 50 20 Destroy Leader 148 | . 30 10 20 68 20 Successful Hack 4 | . . . . 4 . Disable Machine 90 | . . . 15 15 60 Anti-Garrison Action 150 | . . . . . 150 Destroy Structure 101 | . . . 1 74 26 Lose Combat Pursuer 90 | . 90 . . . . Influence Decreases 823 | . 100 164 162 192 205 Entered New Map 220 | . . 74 29 12 105 Time Decay 465 | . 100 70 115 180 . Lost Part 138 | . . 20 18 . 100 Squads Dispatched 3 | . 1 . . 2 . Investigation 1 | . . . . 1 . Extermination . | . . . . . . Reinforcement 1 | . 1 . . . . Assault . | . . . . . . Garrison 1 | . . . . 1 . Intercept . | . . . . . . Searches Triggered . | . . . . . . Construction Impeded . | . . . . . . Haulers Reinforced . | . . . . . . Active Scanning Responses . | . . . . . . Cargo Convoy Interrupts . | . . . . . . Stealth | -11 -10 -10 -9 -9 -9 --------- Run | Yrd Mat Min Mat Sto Gar Distress Signals 6 | . 1 . 2 3 . Communications Jammed . | . . . . . . Distress Signals . | . . . . . . Times Spotted 65 | . 12 6 12 16 19 Peak Tracking Total 7 | . 3 3 7 4 6 Tactical Retreats 4 | . 4 . . . . Traps | -11 -10 -10 -9 -9 -9 ------- Run | Yrd Mat Min Mat Sto Gar Traps Triggered 4 | . . . . . 4 Indirectly . | . . . . . . Trap Hack Attempts . | . . . . . . Triggered . | . . . . . . Disarmed . | . . . . . . Reprogrammed . | . . . . . . Reused . | . . . . . . Traps Extracted . | . . . . . . Installed 1 | . . . . . 1 Triggered . | . . . . . . Most Traps Carried 2 | . . . . . 2 Machines | -11 -10 -10 -9 -9 -9 ---------- Run | Yrd Mat Min Mat Sto Gar Machines Disabled 9 | . . . 1 1 7 Max in Single Turn 3 | . . . 1 1 3 Garrison Relay 3 | . . . . . 3 Machines Repaired . | . . . . . . Machines Dismantled . | . . . . . . Machines Sabotaged . | . . . . . . Overloaded Fab Kills . | . . . . . . Hacking | -11 -10 -10 -9 -9 -9 --------- Run | Yrd Mat Min Mat Sto Gar Machines Accessed 5 | . . . 1 3 1 Terminals 4 | . . . 1 2 1 Fabricators . | . . . . . . Repair Stations . | . . . . . . Recycling Units . | . . . . . . Scanalyzers . | . . . . . . Garrison Access 1 | . . . . 1 . Total Hacks 13 | . . . 3 8 2 Successful 4 | . . . 1 3 . Failed 9 | . . . 2 5 2 Catastrophic 2 | . . . . 1 1 Database Lockouts . | . . . . . . Manual 5 | . . . . 5 . Terminals 11 | . . . 3 6 2 Fabricators . | . . . . . . Repair Stations . | . . . . . . Recycling Units . | . . . . . . Scanalyzers . | . . . . . . Garrison Access 2 | . . . . 2 . Terminal Hacks 3 | . . . 1 2 . Robot Analysis 1 | . . . . 1 . Prototype ID Bank 1 | . . . 1 . . Locate Traps 1 | . . . . 1 . Fabricator Hacks . | . . . . . . Repair Station Hacks . | . . . . . . Recycling Unit Hacks . | . . . . . . Scanalyzer . | . . . . . . Garrison Access Hacks 1 | . . . . 1 . Unlock Access 1 | . . . . 1 . Unauthorized Hacks . | . . . . . . Terminals . | . . . . . . Fabricators . | . . . . . . Repair Stations . | . . . . . . Recycling Units . | . . . . . . Scanalyzers . | . . . . . . Garrison Access . | . . . . . . Data Cores Recovered . | . . . . . . Used . | . . . . . . Hacking Detections 5 | . . . 1 3 1 Full Trace Events 1 | . . . . 1 . Feedback Events . | . . . . . . Feedback Blocked . | . . . . . . Robot Schematics Acquired . | . . . . . . Robots Built . | . . . . . . Authchips . | . . . . . . Time . | . . . . . . Total Robot Build Rating . | . . . . . . Part Schematics Acquired . | . . . . . . Parts Built . | . . . . . . Authchips . | . . . . . . Time . | . . . . . . Total Part Build Rating . | . . . . . . Parts Repaired . | . . . . . . Time . | . . . . . . Parts Recycled . | . . . . . . Recycled Matter . | . . . . . . Retrieved Matter . | . . . . . . Retrieved Components . | . . . . . . Parts Scanalyzed . | . . . . . . Part Schematics Acquired . | . . . . . . Parts Damaged . | . . . . . . Bothacking | -11 -10 -10 -9 -9 -9 ------------ Run | Yrd Mat Min Mat Sto Gar Used RIF Installer . | . . . . . . Robots Hacked . | . . . . . . Non-combat . | . . . . . . Combat . | . . . . . . Robot Hacks Applied . | . . . . . . Relay Couplers Released 17 | . . . . . 17 Machine Destruction 13 | . . . . . 13 Programmers 4 | . . . . . 4 Fabnet Peak Effective % . | . . . . . . Robots Rewired . | . . . . . . Allies Hacked . | . . . . . . Hacks Repelled . | . . . . . . Allies | -11 -10 -10 -9 -9 -9 -------- Run | Yrd Mat Min Mat Sto Gar Total Allies . | . . . . . . Largest Group . | . . . . . . Highest-Rated Group . | . . . . . . Highest-Rated Ally . | . . . . . . Total Orders . | . . . . . . Ally Attacks . | . . . . . . Total Damage . | . . . . . . Kills . | . . . . . . Allies Corrupted . | . . . . . . Allies Melted . | . . . . . . Intel | -11 -10 -10 -9 -9 -9 ------- Run | Yrd Mat Min Mat Sto Gar Active Infowar (turns) 916 | . 249 143 313 211 . Structural 903 | . 249 143 313 198 . Seismic 336 | . . . 125 211 . Robot Analysis Total 1 | . . . . 1 . Derelict Logs Recovered . | . . . . . . Drone Launches . | . . . . . . Drone Recoveries . | . . . . . . Exploration | -11 -10 -10 -9 -9 -9 ------------- Run | Yrd Mat Min Mat Sto Gar Turns Passed 2048 | . 274 143 313 366 952 Spaces Moved 928 | 1 148 62 163 153 401 Core . | . . . . . . Treads 600 | . 43 58 . 115 384 Legs 106 | 1 105 . . . . Wheels 205 | . . 4 163 38 . Hover 17 | . . . . . 17 Flight . | . . . . . . Fastest Speed 95 | 120 120 110 95 95 150 Average Speed 154 | 120 131 156 112 144 184 Slowest Speed 240 | 120 160 160 125 240 240 Overloaded Moves . | . . . . . . Propulsion Burnouts . | . . . . . . Robots Hopped . | . . . . . . Potential Cave-ins . | . . . . . . Cave-ins Triggered . | . . . . . . Exploration Rate (%) 25 | 2 28 12 21 38 52 Regions Visited 5 Branch Regions 2 Pre-discovered Areas . | . . . . . . Known Exits Taken 1 | . . . . 1 . Unknown Exits Taken 4 | 1 1 1 1 . . Scrap Searched . | . . . . . . Spaces Dug 1 | . . . 1 . . Terrain Destroyed 87 | . . . 1 73 13 Melee 1 | . . . 1 . . Projectile . | . . . . . . AOE 86 | . . . . 73 13 Terrain Rammed . | . . . . . . Walls Destroyed . | . . . . . . Machines Disabled . | . . . . . . Actions | -11 -10 -10 -9 -9 -9 --------- Run | Yrd Mat Min Mat Sto Gar Total 1258 | . 190 81 242 226 519 Wait 43 | . 4 . 31 3 5 Move 924 | . 147 61 162 153 401 Hop . | . . . . . . Pick Up 38 | . 6 3 6 5 18 Fast Attach 11 | . 1 . 7 2 1 Attach 14 | . 2 1 3 . 8 Detach 3 | . . . 3 . . Swap 34 | . 5 1 2 13 13 Drop 34 | . 5 . 3 9 17 Fire 115 | . 16 9 . 39 51 Melee 31 | . 3 3 25 . . Ram . | . . . . . . Kick 1 | . 1 . . . . Crush 5 | . . 3 . 2 . Escape Stasis 4 | . . . . . 4 Rewire . | . . . . . . Trap 1 | . . . . . 1 Miscellaneous . | . . . . . . Route ------- -11/Scrapyard -10/Materials -10/Mines -9/Materials -9/Storage -9/Garrison (discovered 1 exit: [*Rec]) History --------- Turn | Location | Event 1 | -11/Scrapyard | Discovered new exit (range 0) 1 | -11/Scrapyard | Entered Materials 224 | -10/Materials | Discovered new exit (range 14) 275 | -10/Materials | Entered Mines 301 | -10/Mines | Build established: Mutant 324 | -10/Mines | Discovered new exit (range 5) 365 | -10/Mines | Assembled infested the area 370 | -10/Mines | Assisted by a Guerilla fighting off Assembled 403 | -10/Mines | Core integrity fell below 50% 418 | -10/Mines | Entered Materials 418 | -9/Materials | Evolved 2 slots: Utility x2 699 | -9/Materials | Discovered new exit (range 5) 731 | -9/Materials | Entered Storage 863 | -9/Storage | Garrison activated, responded to threat 1097 | -9/Storage | Identified exit to Garrison 1097 | -9/Storage | Entered Garrison 1115 | -9/Garrison | Triggered checkpoint 1185 | -9/Garrison | Garrison Relay disabled 1216 | -9/Garrison | Build established: Scavenger-Mutant 1223 | -9/Garrison | Garrison Relay disabled 1335 | -9/Garrison | Core integrity fell below 50% 1375 | -9/Garrison | Triggered checkpoint 1425 | -9/Garrison | Triggered checkpoint 1513 | -9/Garrison | Triggered checkpoint 1513 | -9/Garrison | Garrison Relay disabled 1595 | -9/Garrison | Discovered new exit (range 11) 1877 | -9/Garrison | Triggered checkpoint 1983 | -9/Garrison | Triggered checkpoint 2042 | -9/Garrison | Core integrity fell below 20% 2045 | -9/Garrison | Triggered checkpoint 2049 | -9/Garrison | Destroyed by Armageddon Trap Last Messages --------------- 01996_ Reflective Plating destroyed. 01998_ Ion Engine severed. 01999_ Acquired Ion Engine. 02001_ Imp. Medium Laser destroyed. 02009_ L-31 Rogue destroyed. 02009_ Rocket Launcher destroyed. 02009_ Destroyed Rocket Launcher. 02009_ Imp. Treads destroyed. 02009_ Destroyed Imp. Treads. 02013_ Particle Gun destroyed. 02028_ Connecting with Garrison Terminal... 02031_ Imp. Heat Sink destroyed. 02031_ Ion Engine destroyed. 02032_ The unstable cave ceiling collapses. 02045_ Beams of light sweep through the air. An alarm sounds. 02047_ S-10 Pest destroyed. 02048_ Trap Extractor dropped Armageddon Trap. 02048_ Installed Armageddon Trap. 02049_ Triggered Armageddon Trap. 02049_ An explosion rips through the floor. Map ----- +----------------------------------------------------+ | ???????????????????????## ??????# #???????????? | | ???????????????????????? ??????# #???????????? | | ????????????????????????# #?????# #???????????? | | ????????????????????????# #?????# #???????????? | | ????????????????????????# #####?# #???????????? | | ????????????############# # ### #???????????? | | ??????????? ^ #???????????? | | ??????????? = ^^ #???????????? | | ??????????? % #???????????? | | ??????????????????####### #######???????????? | | ??????????????????????# ### #?????????????????? | | ??????????????????????### ###?????????????????? | | ????????????????????????# #???????????????????? | | ???????????????????????## #???????????????????? | | ???????????????????????#T ###???????????????????? | | ???????????????????????## #?????????????????????? | | ????????????????????????# #?????????????????????? | | ??????????????????????### #?????????????????????? | | ??????????????????????#"# #?????????????????????? | | ??????????????????????#" #?????????????????????? | | ??????????????????????#" #?????????????????????? | | ??????????????????????#" #?????????????????????? | | ??????????????????????#"# #?????????????????????? | | ??????????????????????### #?????????????????????? | | ????????????????????????#l #?????????????????????? | | ????????????????????????#@ #?????????????????????? | | ??????????????????????? ??????????????????? | | ??????????????????????# ??????????????? | | ??????????????????????##Y###ss= ### #??????????? | | ???????????????????????# ??? %s#????????????????? | | ???????????????????????##????####????????????????? | | ?????????????????????????????????????????????????? | | ?????????????????????????????????????????????????? | | ?????????????????????????????????????????????????? | | ?????????????????????????????????????????????????? | | ?????????????????????????????????????????????????? | | ?????????????????????????????????????????????????? | | ?????????????????????????????????????????????????? | | ?????????????????????????????????????????????????? | | ?????????????????????????????????????????????????? | | ?????????????????????????????????????????????????? | | | | | | | | | | | | | | | | | | | +----------------------------------------------------+ Best States ------------- Heat Dissipation 66 Energy Generation 14 Energy Capacity 265 Matter Stores 300 Matter Capacity 300 Sight Range 16 Terrain Scan Density 10 Armor Coverage 150 Resistance: TH 10 Evasion (%) 55 Recoil Reduction 2 Trap Extractor Capacity 4 Item Schematics ----------------- None Robot Schematics ------------------ None Fabricated ------------ Nothing Repaired ---------- Nothing Alien Tech Used ----------------- None Achievements -------------- None Challenges ------------ None Game ------ Seed MachineDirectedDetector Manual? 0 Play Time 00:11:47 Cumulative 1150.4 hours Start 2025.07.26 @ 14:41:34 End 2025.07.27 @ 11:57:19 Sessions 3 Manual Loads 0 Difficulty Rogue Special Mode None Game No. 1417 Rogue 1133 Adventurer 124 Explorer 160 Win Type - Total 52 Types 38/0/8/4/1/0/0/1/0/0 Lore% 92 Gallery% 88 Achievement% 81 Wizard Run 0 Options --------- Layout 0 ASCII 0 Keyboard 1 Movement Numpad Keybinds 0 Fullscreen 2 Font 18/X11 Map View 76x50 Zoom Use 0% Tactical HUD 1 Map Filters NONE Filters NONE Steam 1 RUN: 44de091b-dddb-4c5b-a395-20d8bb9a3f73